bitfinex-derivatives/quotes_SOLF0:USTF0_20250318
["timestamp","ask_amount","ask_price","bid_price","bid_amount"]
[1742267764918,29.3,124.83,124.82,8.0121]
[1742267765121,29.3,124.85,124.81,6.66018769]
[1742267765313,29.3,124.85,124.8,0.05720029]
[1742267765314,29.3,124.85,124.84,6.66018769]
[1742267765514,29.3,124.85,124.84,14.67098769]
[1742267766122,29.3,124.85,124.84,6.66018769]
[1742267766615,29.3,124.85,124.84,14.67098769]
[1742267766922,8.0093,124.87,124.84,6.66018769]
[1742267767112,29.3,124.87,124.84,6.66018769]
[1742267767312,8.0098,124.86,124.84,14.67068769]
[1742267767522,29.3,124.87,124.84,6.66018769]
[1742267772525,8.0102,124.85,124.84,6.66018769]
[1742267774029,8.0099,124.86,124.84,14.67098769]
[1742267775235,29.3,124.87,124.84,6.66018769]
[1742267775426,29.3,124.87,124.86,6.66018769]
[1742267775620,37.3089,124.87,124.86,6.66018769]
[1742267775821,41.42994937,124.87,124.86,6.66018769]
[1742267776528,33.42104937,124.87,124.84,6.66018769]
[1742267776730,4.1227121,124.86,124.84,6.66018769]
[1742267776926,29.3,124.87,124.84,6.66018769]
[1742267777130,4.12274488,124.86,124.83,6.71351033]
[1742267777333,4.12274488,124.85,124.83,6.71351033]
[1742267777636,29.3,124.84,124.83,6.71351033]
[1742267778331,37.3108,124.84,124.83,6.71351033]
[1742267778631,29.3,124.84,124.83,6.71351033]
[1742267778833,37.3108,124.84,124.83,6.71351033]
[1742267779232,29.3,124.84,124.83,6.71351033]
[1742267779533,29.3,124.86,124.83,14.72441033]
[1742267779735,4.1295039,124.85,124.83,14.72441033]
[1742267779934,29.3,124.86,124.83,14.72441033]
[1742267780235,4.12928559,124.85,124.83,6.71351033]
[1742267780435,4.12924971,124.84,124.83,6.71351033]
[1742267780836,12.14004971,124.84,124.83,6.71351033]
[1742267781136,12.14004971,124.84,124.83,2.264e-05]
[1742267785538,41.44004971,124.84,124.83,2.264e-05]
[1742267787548,52.3121374,124.84,124.83,2.264e-05]
[1742267788048,60.3321374,124.84,124.83,2.264e-05]
[1742267788944,60.32366895,124.84,124.83,2.264e-05]
[1742267789259,76.37286895,124.84,124.65,276.4]
[1742267789448,6.66018769,124.7,124.65,6.66018769]
[1742267789647,29.46,124.69,124.65,26.67900176]
[1742267789845,8.0224,124.66,124.65,26.67900176]
[1742267790144,37.4824,124.66,124.65,20.01881407]
[1742267790340,8.0233,124.65,124.63,6.66018769]
[1742267790546,8.0233,124.65,124.64,0.05899811]
[1742267791452,13.45348962,124.65,124.64,0.05899811]
[1742267792458,5.43018962,124.65,124.58,8.7759]
[1742267792648,5.43018962,124.65,124.58,4.4152]
[1742267792958,10.42913708,124.62,124.49,222.81851733]
[1742267793158,29.62,124.61,124.52,10.42913708]
[1742267793352,8.0277,124.58,124.52,10.42913708]
[1742267793659,29.62,124.57,124.55,0.05809994]
[1742267802563,37.6484,124.57,124.55,0.05809994]
[1742267802761,29.62,124.57,124.55,0.05809994]
[1742267803663,29.5,124.56,124.55,0.05809994]
[1742267805560,29.5,124.56,124.54,8.03]
[1742267806564,29.5,124.56,124.55,8.0295]
[1742267806762,29.46,124.58,124.54,10.48428591]
[1742267807068,0.05436392,124.57,124.55,8.0295]
[1742267807471,0.05436392,124.57,124.55,0.06032306]
[1742267807768,0.05436392,124.57,124.56,8.0289]
[1742267809264,0.05436392,124.57,124.56,18.45803708]
[1742267809564,0.05436392,124.57,124.56,5.46852473]
[1742267810463,0.05436392,124.57,124.56,13.49742473]
[1742267810874,0.05436392,124.57,124.56,22.06422473]
[1742267812571,363.0,124.64,124.6,8.0263]
[1742267812767,4.1582,124.65,124.58,10.42913708]
[1742267812768,29.4,124.63,124.58,10.42913708]
[1742267812974,29.4,124.63,124.6,10.42913708]
[1742267813267,29.4,124.63,124.61,8.0256]
[1742267813663,29.46042577,124.63,124.61,8.08145504]
[1742267813868,29.46042577,124.63,124.61,0.05585504]
[1742267814573,0.06042577,124.63,124.61,0.05585504]
[1742267815074,0.06042577,124.63,124.61,8.08135504]
[1742267815467,0.06042577,124.63,124.61,0.05585504]
[1742267816172,0.06042577,124.63,124.61,8.08115504]
[1742267816581,0.06042577,124.63,124.61,0.05585504]
[1742267817573,0.06042577,124.63,124.61,8.08115504]
[1742267817973,0.06042577,124.63,124.61,0.05585504]
[1742267818876,0.06042577,124.63,124.62,8.025]
[1742267821576,276.9,124.7,124.62,10.42913708]
[1742267821774,37.3808,124.69,124.63,4.126]
[1742267821971,29.36,124.69,124.65,8.0228]
[1742267822376,37.3807,124.69,124.63,4.126]
[1742267822671,29.415631,124.68,124.66,0.05748492]
[1742267823374,37.436831,124.68,124.66,0.05748492]
[1742267823571,29.415631,124.68,124.66,8.07978492]
[1742267823778,0.055631,124.68,124.66,0.05748492]
[1742267824076,0.055631,124.68,124.66,8.07958492]
[1742267824279,0.055631,124.68,124.66,0.05748492]
[1742267824572,0.055631,124.68,124.66,8.07938492]
[1742267824775,0.055631,124.68,124.66,10.486622]
[1742267825072,0.055631,124.68,124.67,8.0218]
[1742267825572,8.0189,124.72,124.69,8.0203]
[1742267826174,8.0195,124.71,124.68,18.44993708]
[1742267826368,8.0195,124.71,124.68,10.42913708]
[1742267826571,29.36,124.72,124.68,10.42913708]
[1742267826977,29.36,124.72,124.68,10.48813686]
[1742267827277,37.3788,124.72,124.69,8.0204]
[1742267827675,29.36,124.72,124.68,0.05899978]
[1742267828573,10.42913708,124.7,124.63,4.126]
[1742267828770,282.15737293,124.71,124.6,8.1257]
[1742267828771,10.42913708,124.68,124.6,8.1257]
[1742267829376,10.42913708,124.68,124.6,16.1517]
[1742267829377,8.0247,124.63,124.6,16.1517]
[1742267829780,8.08346483,124.63,124.6,16.21095691]
[1742267829982,8.0251,124.62,124.6,16.21095691]
[1742267830184,0.05876483,124.63,124.6,16.21095691]
[1742267830379,0.05876483,124.63,124.61,8.0254]
[1742267830683,0.05876483,124.63,124.6,8.18495691]
[1742267830878,0.05876483,124.63,124.6,18.61409399]
[1742267831074,8.08316483,124.63,124.61,8.0252]
[1742267831382,0.05876483,124.63,124.61,8.0252]
[1742267831581,0.05876483,124.63,124.6,18.61409399]
[1742267832077,0.05876483,124.63,124.61,8.0252]
[1742267832280,0.05876483,124.63,124.6,18.61409399]
[1742267832683,0.05876483,124.63,124.6,4.11825691]
[1742267832982,8.0256,124.61,124.6,0.05925691]
[1742267833183,37.3656,124.61,124.6,0.05925691]
[1742267833377,42.77438537,124.61,124.6,5.691e-05]
[1742267834181,46.86715392,124.61,124.6,5.691e-05]
[1742267835780,46.86155392,124.61,124.52,4.1393]
[1742267835985,10.42913708,124.59,124.52,4.1393]
[1742267836280,33.43276855,124.58,124.52,4.1393]
[1742267836588,29.34,124.58,124.52,4.1393]
[1742267836780,29.34,124.58,124.53,8.0304]
[1742267836980,8.0296,124.55,124.54,0.05429741]
[1742267837186,37.3896,124.55,124.54,0.05429741]
[1742267837590,34.76878537,124.55,124.54,0.05429741]
[1742267840982,42.79828537,124.55,124.54,0.05429741]
[1742267841784,34.76878537,124.55,124.54,0.05429741]
[1742267842284,5.40878537,124.55,124.54,10.48343449]
[1742267842485,5.40878537,124.55,124.54,18.51353449]
[1742267842685,0.06006895,124.56,124.54,10.48343449]
[1742267843085,0.06006895,124.56,124.55,8.0295]
[1742267843989,29.36,124.58,124.57,8.0282]
[1742267844389,29.36,124.6,124.54,18.97593449]
[1742267844888,8.0272,124.59,124.55,8.0294]
[1742267845089,0.05193372,124.58,124.56,0.05233324]
[1742267845488,0.05193372,124.58,124.56,8.08113324]
[1742267845696,0.05193372,124.58,124.56,0.05233324]
[1742267846393,0.05193372,124.58,124.56,8.08093324]
[1742267846694,0.05193372,124.58,124.56,0.05233324]
[1742267847092,0.05193372,124.58,124.56,8.08083324]
[1742267847392,0.05193372,124.58,124.56,0.05233324]
[1742267847594,0.05193372,124.58,124.57,8.0282]
[1742267847894,0.05193372,124.58,124.56,0.05233324]
[1742267848894,0.05193372,124.58,124.57,8.0282]
[1742267849884,0.05193372,124.58,124.56,47.87007032]
[1742267850194,0.05193372,124.58,124.56,39.84147032]
[1742267850993,0.05193372,124.58,124.57,8.0282]
[1742267855098,0.05193372,124.58,124.56,0.05233324]
[1742267855099,29.43193372,124.58,124.56,0.05233324]
[1742267855492,8.0282,124.57,124.56,0.05233324]
[1742267856100,37.45983372,124.58,124.56,0.05233324]
[1742267856290,0.05193372,124.58,124.56,0.05233324]
[1742267856694,0.05193372,124.58,124.56,8.08063324]
[1742267856998,0.05193372,124.58,124.56,0.05233324]
[1742267857299,0.05193372,124.58,124.56,8.08073324]
[1742267857494,0.05193372,124.58,124.56,0.05233324]
[1742267857995,0.05193372,124.58,124.57,8.0282]
[1742267859299,0.05193372,124.58,124.56,18.50997032]
[1742267860300,0.05193372,124.58,124.57,8.0282]
[1742267860901,0.05193372,124.58,124.57,37.3882]
[1742267861099,0.05193372,124.58,124.57,41.398]
[1742267862404,0.05193372,124.58,124.57,4.0098]
[1742267862697,0.05193372,124.58,124.56,0.05233324]
[1742267862891,37.5082,124.57,124.56,0.05233324]
[1742267863295,42.87063213,124.57,124.56,3.324e-05]
[1742267863698,53.29976921,124.57,124.56,3.324e-05]
[1742267864001,42.87063213,124.57,124.56,3.324e-05]
[1742267865095,37.5082,124.57,124.56,3.324e-05]
[1742267865300,42.86739763,124.57,124.56,3.324e-05]
[1742267866399,53.29653471,124.57,124.56,3.324e-05]
[1742267867003,42.86739763,124.57,124.56,3.324e-05]
[1742267867402,53.29653471,124.57,124.56,3.324e-05]
[1742267867902,57.39748775,124.57,124.56,3.324e-05]
[1742267868603,8.0327,124.5,124.46,33.4988]
[1742267869002,8.0327,124.5,124.47,8.0343]
[1742267869605,8.0901646,124.5,124.48,8.0339]
[1742267869800,0.0574646,124.5,124.47,0.05228492]
[1742267870000,0.0574646,124.5,124.49,10.42913708]
[1742267870304,0.0574646,124.5,124.49,18.46253708]
[1742267870798,8.0901646,124.5,124.47,18.515722]
[1742267871205,29.5374646,124.5,124.47,0.05228492]
[1742267871500,281.08232148,124.49,124.39,10.42913708]
[1742267871701,282.33880401,124.49,124.41,10.42913708]
[1742267872100,5.35880401,124.48,124.43,10.42913708]
[1742267872404,5.35880401,124.48,124.45,10.42913708]
[1742267872604,0.0593993,124.47,124.45,10.42913708]
[1742267872800,0.0593993,124.47,124.44,0.05479667]
[1742267872999,8.0359,124.45,124.44,0.05479667]
[1742267873808,13.39424378,124.45,124.44,0.05479667]
[1742267875005,13.39424378,124.45,124.44,9.667e-05]
[1742267877005,17.49154989,124.45,124.3,277.1]
[1742267877207,17.49154989,124.45,124.33,14.43843708]
[1742267877208,10.42913708,124.43,124.33,14.43843708]
[1742267877413,10.42913708,124.43,124.36,8.0414]
[1742267877709,5.35834378,124.42,124.37,10.42913708]
[1742267877911,29.94,124.41,124.37,10.42913708]
[1742267878101,0.06021213,124.4,124.38,0.05967634]
[1742267879113,0.06021213,124.4,124.39,18.46893708]
[1742267879307,29.94,124.43,124.39,10.42913708]
[1742267879510,29.94,124.45,124.39,10.42913708]
[1742267880413,0.05351449,124.43,124.41,0.06020646]
[1742267880912,8.09121449,124.43,124.41,0.06020646]
[1742267881815,0.05351449,124.43,124.41,0.06020646]
[1742267882316,8.0379,124.42,124.41,0.06020646]
[1742267882714,37.9579,124.42,124.41,0.06020646]
[1742267883119,37.9579,124.42,124.36,4.3442]
[1742267883120,8.0408,124.38,124.36,4.3442]
[1742267884219,8.09938695,124.38,124.36,4.39769458]
[1742267884426,8.0411,124.37,124.36,0.05349458]
[1742267884624,0.05858695,124.38,124.36,0.05349458]
[1742267884825,0.05858695,124.38,124.36,8.09519458]
[1742267885418,0.05858695,124.38,124.37,8.0411]
[1742267886422,29.9,124.43,124.39,8.0395]
[1742267886616,29.9,124.42,124.37,10.42913708]
[1742267887022,8.0395,124.4,124.37,10.42913708]
[1742267887526,29.98,124.39,124.37,0.05432526]
[1742267887730,8.0405,124.38,124.37,0.05432526]
[1742267889529,38.0202,124.39,124.37,0.05432526]
[1742267890023,8.09080479,124.4,124.37,8.09502526]
[1742267890228,30.05120479,124.4,124.37,0.05432526]
[1742267890529,8.0405,124.38,124.37,0.05432526]
[1742267890925,38.0805,124.38,124.37,0.05432526]
[1742267892523,0.05120479,124.4,124.37,8.09502526]
[1742267892929,0.05120479,124.4,124.37,0.05432526]
[1742267893524,8.0403,124.39,124.37,0.05432526]
[1742267893823,30.04,124.38,124.37,0.05432526]
[1742267894531,38.0805,124.38,124.37,0.05432526]
[1742267895031,8.0426,124.35,124.31,20.81357375]
[1742267895226,30.04,124.38,124.31,4.0521]
[1742267895628,8.0415,124.37,124.31,4.0521]
[1742267895924,30.04,124.38,124.3,38.6075]
[1742267896331,0.06048047,124.35,124.33,0.05059269]
[1742267896630,0.06048047,124.35,124.34,8.0431]
[1742267897526,281.5114,124.43,124.33,46.81206644]
[1742267897724,30.0,124.41,124.33,46.76147375]
[1742267897924,30.0,124.41,124.33,30.0]
[1742267898121,30.0,124.41,124.33,8.0433]
[1742267898628,8.0421,124.36,124.33,8.0433]
[1742267898822,30.05206114,124.38,124.36,0.05923001]
[1742267899030,30.0,124.38,124.31,46.78147375]
[1742267899223,30.05304312,124.38,124.36,0.05969445]
[1742267899424,30.05304312,124.38,124.36,0.0589713]
[1742267899729,8.0438,124.33,124.3,8.5875]
[1742267899931,38.0638,124.33,124.3,8.5875]
[1742267900533,30.02,124.33,124.31,8.045]
[1742267900923,30.07737863,124.33,124.31,8.10167666]
[1742267901327,30.07737863,124.33,124.31,0.05667666]
[1742267901328,8.0444,124.32,124.31,0.05667666]
[1742267901631,30.07737863,124.33,124.31,0.05667666]
[1742267902034,8.0444,124.32,124.31,0.05667666]
[1742267902222,30.07737863,124.33,124.24,29.94357375]
[1742267902532,8.0465,124.29,124.26,8.0481]
[1742267902732,30.12,124.28,124.26,8.0481]
[1742267902922,30.12,124.28,124.24,13.1821]
[1742267903126,8.046,124.3,124.24,13.1821]
[1742267903127,30.14,124.3,124.24,60.08357375]
[1742267903530,0.05408372,124.27,124.26,8.0482]
[1742267903721,30.14,124.33,124.26,16.76147375]
[1742267903926,30.14,124.33,124.28,16.76147375]
[1742267904127,30.14,124.33,124.3,8.0453]
[1742267904527,30.14,124.33,124.28,16.76147375]
[1742267904730,30.14,124.33,124.3,8.0455]
[1742267904932,0.05430615,124.32,124.29,0.05084681]
[1742267905330,0.05430615,124.32,124.3,30.14]
[1742267905532,0.05430615,124.32,124.3,55.51467375]
[1742267905729,0.05430615,124.32,124.31,8.045]
[1742267905930,30.14,124.36,124.3,55.51467375]
[1742267907233,0.05981155,124.34,124.32,0.05557326]
[1742267907535,0.05981155,124.34,124.33,8.0437]
[1742267908029,30.1,124.4,124.33,30.1]
[1742267908729,5.32002571,124.39,124.33,30.1]
[1742267908937,5.32002571,124.39,124.34,16.76147375]
[1742267909235,11.12168052,124.41,124.35,0.0608595]
[1742267909236,0.05652421,124.37,124.35,0.0608595]
[1742267909731,5.32492227,124.4,124.36,30.1]
[1742267910039,5.32492227,124.4,124.36,46.86147375]
[1742267910335,5.32492227,124.4,124.39,8.0398]
[1742267910534,49.25938052,124.43,124.36,46.86147375]
[1742267910731,19.15938052,124.43,124.39,8.0393]
[1742267910932,0.04377707,124.41,124.39,8.0393]
[1742267911128,0.04377707,124.41,124.38,0.05695539]
[1742267911633,0.04377707,124.41,124.39,30.08]
[1742267911826,11.12168052,124.43,124.39,34.307]
[1742267911827,5.33623329,124.42,124.39,34.307]
[1742267912436,5.33623329,124.42,124.41,8.0385]
[1742267912636,11.12168052,124.43,124.39,34.307]
[1742267912939,371.0365,124.45,124.42,8.0376]
[1742267913230,8.0365,124.45,124.42,8.0376]
[1742267913430,5.34578919,124.44,124.42,8.09165777]
[1742267913629,13.38258919,124.44,124.42,0.05405777]
[1742267913936,35.38578919,124.43,124.42,0.05405777]
[1742267914138,43.42298919,124.43,124.42,0.05405777]
[1742267914439,39.48077634,124.43,124.34,16.76147375]
[1742267914736,4.09498715,124.42,124.35,8.0424]
[1742267914936,4.09498715,124.42,124.34,30.08]
[1742267915237,8.0397,124.4,124.36,8.0414]
[1742267915433,38.0997,124.4,124.36,8.0414]
[1742267915634,5.39984696,124.39,124.37,0.05540966]
[1742267916036,0.05405777,124.39,124.37,0.05540966]
[1742267916238,0.05405777,124.39,124.38,8.0405]
[1742267916438,0.05405777,124.39,124.37,0.05540966]
[1742267916835,0.05405777,124.39,124.38,8.0405]
[1742267917140,0.05405777,124.39,124.37,0.05540966]
[1742267917541,30.06,124.42,124.37,0.05540966]
[1742267917743,30.06,124.42,124.37,30.11540966]
[1742267917942,30.06,124.42,124.38,8.0401]
[1742267917943,8.0392,124.41,124.38,8.0401]
[1742267918140,5.36049871,124.41,124.37,30.11540966]
[1742267918543,5.36049871,124.41,124.37,0.05540966]
[1742267918840,5.36049871,124.4,124.37,0.05540966]
[1742267919239,5.36049871,124.39,124.37,0.05540966]
[1742267919641,8.0405,124.38,124.37,0.05540966]
[1742267919942,13.40099871,124.38,124.37,0.05540966]
[1742267920736,5.36049871,124.38,124.37,0.05540966]
[1742267921539,13.40099871,124.38,124.37,0.05540966]
[1742267921735,5.36049871,124.38,124.37,0.05540966]
[1742267922142,13.40099871,124.38,124.37,0.05540966]
[1742267922744,5.36049871,124.38,124.37,0.05540966]
[1742267923144,30.04,124.39,124.37,0.05540966]
[1742267923543,8.0405,124.38,124.37,0.05540966]
[1742267924635,13.39849477,124.38,124.37,0.05540966]
[1742267924835,5.35799477,124.38,124.37,0.05540966]
[1742267925340,38.0802,124.39,124.37,0.05540966]
[1742267926742,29.96,124.43,124.37,16.81688341]
[1742267926940,29.96,124.42,124.37,20.95848341]
[1742267927143,8.0399,124.39,124.37,20.90307375]
[1742267927447,8.0399,124.39,124.38,0.05238467]
[1742267927840,13.3965706,124.39,124.38,0.05238467]
[1742267928847,5.3566706,124.39,124.38,0.05238467]
[1742267929747,29.98,124.41,124.38,8.09258467]
[1742267930342,5.3574148,124.4,124.39,8.0397]
[1742267930648,29.94,124.43,124.39,8.0397]
[1742267930946,29.94,124.43,124.38,10.52784424]
[1742267931448,5.35778719,124.42,124.38,18.56804424]
[1742267931749,8.0391,124.41,124.38,18.56804424]
[1742267931949,29.94,124.43,124.39,8.0397]
[1742267932144,29.94,124.43,124.38,10.52784424]
[1742267932345,37.9776,124.43,124.38,10.52784424]
[1742267932545,29.94,124.43,124.38,22.72554424]
[1742267932745,5.35614773,124.42,124.38,14.68544424]
[1742267933450,5.35614773,124.41,124.38,14.68544424]
[1742267933651,8.0398,124.39,124.38,0.05919123]
[1742267933856,13.39594773,124.39,124.38,0.05919123]
[1742267938052,8.0398,124.39,124.38,0.05919123]
[1742267939250,13.391872,124.39,124.38,0.05919123]
[1742267940352,13.391872,124.39,124.38,9.123e-05]
[1742267941854,8.0398,124.39,124.38,9.123e-05]
[1742267942050,0.05695761,124.4,124.38,10.46874424]
[1742267942555,0.05695761,124.4,124.38,9.123e-05]
[1742267942755,0.05695761,124.4,124.38,10.46874424]
[1742267942951,0.05695761,124.4,124.38,9.123e-05]
[1742267943355,43.25232979,124.39,124.38,9.123e-05]
[1742267943552,35.21252979,124.39,124.38,9.123e-05]
[1742267943858,5.35252979,124.39,124.38,9.123e-05]
[1742267944558,13.39232979,124.39,124.38,9.123e-05]
[1742267944755,5.35252979,124.39,124.38,9.123e-05]
[1742267945760,5.35252979,124.39,124.38,8.04059123]
[1742267946452,8.09655761,124.4,124.38,9.123e-05]
[1742267947151,5.35519496,124.39,124.38,9.123e-05]
[1742267947356,5.35519496,124.39,124.38,8.04059123]
[1742267947558,5.35519496,124.39,124.38,18.50924424]
[1742267947858,0.05695761,124.4,124.38,10.46874424]
[1742267948054,8.0375,124.43,124.38,14.70974424]
[1742267948257,8.0375,124.43,124.4,10.46865301]
[1742267948556,5.36308303,124.42,124.4,18.50735301]
[1742267948751,5.36308303,124.42,124.4,10.46865301]
[1742267949055,11.12259987,124.45,124.42,8.0375]
[1742267949356,11.12259987,124.45,124.42,10.46865301]
[1742267949357,8.0369,124.44,124.42,10.46865301]
[1742267949556,11.12259987,124.45,124.42,10.52031315]
[1742267949758,5.36521772,124.43,124.42,10.52031315]
[1742267949958,13.40241772,124.43,124.42,0.05166014]
[1742267950551,17.51101787,124.43,124.42,0.05166014]
[1742267951356,47.31101787,124.43,124.42,0.05166014]
[1742267951859,47.31174192,124.43,124.42,0.05166014]
[1742267953263,9.47454192,124.43,124.42,10.52031315]
[1742267953459,5.36521772,124.43,124.42,10.52031315]
[1742267953664,74.29039949,124.48,124.42,10.52031315]
[1742267953860,8.0365,124.45,124.42,10.52031315]
[1742267954060,74.29039949,124.48,124.42,10.52031315]
[1742267954374,8.0358,124.46,124.42,10.52031315]
[1742267954556,74.29039949,124.48,124.42,18.55791315]
[1742267954755,4.10449881,124.47,124.42,10.52031315]
[1742267954959,8.0367,124.44,124.42,10.52031315]
[1742267955666,8.0363,124.45,124.42,10.52031315]
[1742267955965,8.0371,124.44,124.42,10.52031315]
[1742267956165,29.84,124.46,124.42,10.52031315]
[1742267956567,8.0362,124.45,124.42,18.55781315]
[1742267956766,29.84,124.46,124.42,10.52031315]
[1742267957059,12.9358,124.5,124.44,10.46865301]
[1742267957256,33.94179652,124.49,124.44,10.46865301]
[1742267957461,70.79972677,124.51,124.46,10.5274983]
[1742267957665,33.94012803,124.5,124.46,18.5623983]
[1742267957865,40.96259987,124.51,124.46,10.5274983]
[1742267958073,4.1008376,124.5,124.46,10.5274983]
[1742267958257,8.0334,124.49,124.46,18.5624983]
[1742267958458,8.0334,124.49,124.46,10.5274983]
[1742267958672,8.0347,124.47,124.46,0.05884529]
[1742267958963,29.84,124.48,124.46,0.05884529]
[1742267959163,11.12259987,124.51,124.46,10.5274983]
[1742267959357,11.12259987,124.51,124.48,10.46865301]
[1742267959859,11.12259987,124.51,124.5,10.46865301]
[1742267960556,11.12259987,124.51,124.5,18.50135301]
[1742267961161,11.12259987,124.51,124.49,29.2382516]
[1742267961666,8.0327,124.5,124.49,0.05147315]
[1742267962668,8.0324,124.51,124.49,0.05147315]
[1742267963166,8.0325,124.51,124.49,0.05147315]
[1742267963562,29.84,124.54,124.49,0.05147315]
[1742267963763,37.8705,124.54,124.49,46.55457845]
[1742267963959,8.0305,124.54,124.5,0.05788494]
[1742267964169,67.95734092,124.57,124.5,0.05788494]
[1742267964375,33.92361712,124.56,124.5,0.05788494]
[1742267964577,33.92361712,124.56,124.5,8.09028494]
[1742267964578,29.84,124.56,124.5,8.09028494]
[1742267965070,8.0312,124.53,124.5,8.09028494]
[1742267965368,29.84,124.56,124.5,0.05788494]
[1742267965568,8.0305,124.54,124.5,0.05788494]
[1742267965959,8.0305,124.54,124.51,8.0317]
[1742267966166,8.0308,124.53,124.5,0.05788494]
[1742267966473,29.84,124.56,124.51,8.032]
[1742267966768,8.0306,124.54,124.51,8.032]
[1742267967071,5.25468635,124.55,124.5,0.05788494]
[1742267967267,29.84,124.56,124.5,8.09018494]
[1742267968266,5.24824266,124.55,124.5,8.09018494]
[1742267969172,8.0312,124.53,124.5,8.09018494]
[1742267969672,29.84,124.56,124.51,8.032]
[1742267969873,8.0305,124.54,124.51,8.032]
[1742267970069,29.84,124.56,124.5,8.09028494]
[1742267970469,8.0313,124.53,124.5,8.09028494]
[1742267970872,8.0317,124.52,124.5,0.05788494]
[1742267971270,29.72,124.53,124.5,0.05788494]
[1742267971471,29.72,124.52,124.46,37.755]
[1742267971671,29.72,124.52,124.5,0.05590795]
[1742267971970,8.0321,124.51,124.5,0.05590795]
[1742267972669,37.7518,124.52,124.5,0.05590795]
[1742267973072,29.72,124.52,124.5,0.05590795]
[1742267973476,8.0321,124.51,124.5,0.05590795]
[1742267973975,29.72,124.52,124.5,0.05590795]
[1742267973976,37.7519,124.52,124.5,0.05590795]
[1742267974167,29.72,124.52,124.5,0.05590795]
[1742267974569,29.7,124.56,124.5,0.05590795]
[1742267974772,29.7,124.56,124.5,16.71457845]
[1742267974971,29.7,124.56,124.52,0.05602581]
[1742267975170,8.0308,124.53,124.52,0.05602581]
[1742267976575,8.0304,124.54,124.52,0.05602581]
[1742267977375,375.906,124.58,124.52,0.05602581]
[1742267977571,16.0522,124.61,124.52,16.77060426]
[1742267977778,8.0292,124.56,124.52,16.71457845]
[1742267977979,29.68,124.59,124.55,0.05529631]
[1742267978478,8.0289,124.56,124.55,0.05529631]
[1742267979477,8.0285,124.57,124.55,0.05529631]
[1742267979675,29.64,124.6,124.54,46.37457845]
[1742267979879,29.66,124.6,124.55,0.05827612]
[1742267980582,8.0289,124.56,124.55,0.05827612]
[1742267980779,8.0289,124.56,124.55,7.612e-05]
[1742267981183,20.8665,124.56,124.55,7.612e-05]
[1742267981580,26.11719678,124.56,124.55,7.612e-05]
[1742267982584,13.27959678,124.56,124.55,7.612e-05]
[1742267982884,42.95959678,124.56,124.55,7.612e-05]
[1742267983483,37.7089,124.56,124.55,7.612e-05]
[1742267986896,42.96240318,124.56,124.55,7.612e-05]
[1742267987197,47.03408145,124.56,124.55,7.612e-05]
[1742267987394,42.96240318,124.56,124.55,7.612e-05]
[1742267988298,50.98240318,124.56,124.55,7.612e-05]
[1742267988597,55.0573174,124.56,124.55,7.612e-05]
[1742267990497,47.0373174,124.56,124.55,7.612e-05]
[1742267992403,70.52749534,124.56,124.55,7.612e-05]
[1742267994499,40.84749534,124.56,124.55,7.612e-05]
[1742267994699,66.37258112,124.56,124.55,7.612e-05]
[1742267995101,70.45905287,124.56,124.55,7.612e-05]
[1742267995298,66.37258112,124.56,124.55,7.612e-05]
[1742267996305,70.46261943,124.56,124.55,7.612e-05]
[1742267996915,66.37258112,124.56,124.55,7.612e-05]
[1742267997302,70.46535985,124.56,124.55,7.612e-05]
[1742267998709,42.88240318,124.56,124.55,7.612e-05]
[1742267998906,46.97916282,124.56,124.55,7.612e-05]
[1742267999805,42.88240318,124.56,124.55,7.612e-05]
[1742268000007,13.28240318,124.56,124.55,7.612e-05]
[1742268000404,17.38379049,124.56,124.55,7.612e-05]
[1742268000604,13.28240318,124.56,124.55,7.612e-05]
[1742268001009,17.38569668,124.56,124.55,7.612e-05]
[1742268001310,17.4277604,124.56,124.55,7.612e-05]
[1742268004406,8.0327,124.5,124.49,8.3631]
[1742268004809,29.54,124.55,124.49,8.3631]
[1742268005004,4.1094754,124.54,124.51,10.4463419]
[1742268005208,5.2955669,124.53,124.51,18.4781419]
[1742268005609,5.35598541,124.53,124.51,10.49779597]
[1742268005809,13.3269669,124.52,124.51,10.49779597]
[1742268006010,5.2955669,124.52,124.51,10.49779597]
[1742268007817,5.2955669,124.52,124.51,18.52989597]
[1742268008115,29.58,124.57,124.51,10.49779597]
[1742268008321,4.11307987,124.56,124.53,10.4463419]
[1742268008621,37.6088,124.57,124.54,8.0299]
[1742268008820,4.11355976,124.56,124.54,8.0299]
[1742268009026,29.58,124.57,124.54,8.0299]
[1742268009319,4.11372646,124.56,124.43,17.47210263]